[Event "Faroes Open 2018"]
[Site "Sandavagur"]
[Date "2018.07.08"]
[Round "2"]
[White "Nielsen, Torkil"]
[Black "Miezis, Normunds"]
[Result "1/2-1/2"]
[ECO "B22"]
[WhiteElo "2115"]
[BlackElo "2468"]
[Annotator "ChessBase"]
[PlyCount "118"]
[EventDate "2018.07.07"]
[EventType "swiss"]
[EventCountry "FAI"]
[SourceTitle "playchess.com"]
[Source "ChessBase"]
[SourceQuality "1"]
[TimeControl "40/5400+30:900+30"]

1. e4 {[%emt 0:00:00]} c5 {[%emt 0:00:57]} 2. c3 {[%emt 0:00:06]} d5 {[%emt 0:00:48]} 3. exd5 {[%emt 0:00:17]} Qxd5 {[%emt 0:00:09]} 4. d4 {[%emt 0:00:10]} Nf6 {[%emt 0:00:30]} 5. Nf3 {[%emt 0:00:35]} Bg4 {[%emt 0:00:21]} 6. dxc5 {[%emt 0:04:26]} Qxc5 {[%emt 0:00:39]} 7. Be3 {[%emt 0:01:53]} Qc8 {[%emt 0:03:08]} 8. Nbd2 {[%emt 0:05:57]} Nc6 {[%emt 0:00:47]} 9. Qa4 {[%emt 0:02:55]} a6 {[%emt 0:09:27]} 10. h3 {[%emt 0:14:46]} b5 {[%emt 0:02:55]} 11. Qd1 {[%emt 0:08:59]} Bh5 {[%emt 0:03:36]} 12. g4 {[%emt 0:02:29]} Bg6 {[%emt 0:00:08]} 13. Bg2 {[%emt 0:00:33]} Nd5 {[%emt 0:04:22]} 14. Qe2 {[%emt 0:07:55]} e6 {[%emt 0:05:09]} 15. O-O {[%emt 0:11:08]} Be7 {[%emt 0:02:16]} 16. Rac1 {[%emt 0:03:25]} O-O {[%emt 0:03:13]} 17. a3 {[%emt 0:04:35]} Rb8 {[%emt 0:11:25]} 18. b4 {[%emt 0:06:50]} Bf6 {[%emt 0:06:17]} 19. Nd4 {[%emt 0:03:30]} Nxd4 {[%emt 0:02:48]} 20. cxd4 {[%emt 0:03:13]} Qd8 {[%emt 0:02:36]} 21. Nb3 {[%emt 0:01:08]} Qd6 {[%emt 0:03:16]} 22. Rfd1 {[%emt 0:05:46]} h6 {[%emt 0:04:34]} 23. Nc5 {[%emt 0:02:48]} Rfd8 {[%emt 0:02:26]} 24. Bxd5 {[%emt 0:04:24]} exd5 {[%emt 0:01:14]} 25. Qf3 {[%emt 0:00:34]} Bg5 {[%emt 0:00:28]} 26. Bxg5 {[%emt 0:01:50]} hxg5 {[%emt 0:00:10]} 27. Re1 {[%emt 0:00:22]} Re8 {[%emt 0:01:53]} 28. Re3 {[%emt 0:01:03]} Ra8 {[%emt 0:02:21]} 29. Rce1 {[%emt 0:00:51]} Rxe3 {[%emt 0:02:48]} 30. Qxe3 {[%emt 0:00:02]} f6 {[%emt 0:01:26]} 31. Qe6+ {[%emt 0:01:03]} Qxe6 {[%emt 0:00:08]} 32. Rxe6 {[%emt 0:00:02]} a5 {[%emt 0:00:08]} 33. bxa5 {[%emt 0:00:58]} Rxa5 {[%emt 0:00:09]} 34. Ra6 {[%emt 0:00:06]} Rxa6 {[%emt 0:00:06]} 35. Nxa6 {[%emt 0:00:02]} Bd3 {[%emt 0:00:14]} 36. Nc5 {[%emt 0:01:48]} Be2 {[%emt 0:00:46]} 37. Kg2 {[%emt 0:00:37]} Kf7 {[%emt 0:00:15]} 38. Kg3 {[%emt 0:00:44]} Kg6 {[%emt 0:01:23]} 39. h4 {[%emt 0:00:55]} gxh4+ {[%emt 0:00:48]} 40. Kxh4 {[%emt 0:00:02]} Kh6 {[%emt 0:04:08]} 41. f4 {[%emt 0:03:45]} g5+ {[%emt 0:00:17]} 42. Kg3 {[%emt 0:00:08]} Kg6 {[%emt 0:00:15]} 43. Ne6 {[%emt 0:00:44]} Kf7 {[%emt 0:00:36]} 44. Nc7 {[%emt 0:04:07]} Bc4 {[%emt 0:00:46]} 45. f5 {[%emt 0:02:35]} Ke7 {[%emt 0:00:07]} 46. Kf3 {[%emt 0:00:32]} Kd7 {[%emt 0:00:09]} 47. Ne6 {[%emt 0:00:43]} Kd6 {[%emt 0:01:18]} 48. Nf8 {[%emt 0:00:48]} Bb3 {[%emt 0:01:25]} 49. Kg3 {[%emt 0:00:26]} Bd1 {[%emt 0:00:12]} 50. Kh3 {[%emt 0:00:20]} Bf3 {[%emt 0:03:53]} 51. Kg3 {[%emt 0:00:03]} Be2 {[%emt 0:00:07]} 52. Kh3 {[%emt 0:00:23]} Bd3 53. Kg3 {[%emt 0:00:30]} Bc4 54. Kf3 {[%emt 0:00:30]} Bb3 55. Kg3 {[%emt 0:00:30]} Bc2 56. Kf3 {[%emt 0:00:30]} Bd1+ 57. Kg3 {[%emt 0:00:30]} Ke7 58. Ne6 {[%emt 0:00:30]} Be2 59. Kh3 {[%emt 0:00:30]} Kd6 1/2-1/2

[Event "Faroes Open 2018"]
[Site "Sandavagur"]
[Date "2018.07.08"]
[Round "2"]
[White "Maroroa, Sue"]
[Black "Olsen, Kaj"]
[Result "1-0"]
[ECO "C55"]
[WhiteElo "2104"]
[BlackElo "1696"]
[Annotator "NA"]
[PlyCount "49"]
[EventDate "2018.07.07"]
[EventType "swiss"]
[EventCountry "FAI"]
[SourceTitle "playchess.com"]
[Source "ChessBase"]
[SourceQuality "1"]
[TimeControl "40/5400+30:900+30"]

1. e4 {[%emt 0:00:00]} e5 {[%emt 0:00:00]} 2. Bc4 {[%emt 0:00:00]} Nc6 {[%emt 0:00:00]} 3. Nf3 {[%emt 0:00:01]} Nf6 {[%emt 0:01:43]} 4. d3 {[%emt 0:00:20]} Be7 {[%emt 0:00:32]} 5. O-O {[%emt 0:02:42]} d5 {[%emt 0:03:17]} 6. exd5 {[%emt 0:04:47]} Nxd5 {[%emt 0:00:59]} 7. Re1 {[%emt 0:00:56]} f6 {[%emt 0:02:53] C24: Läuferspiel} (7... O-O 8. Nxe5 Nxe5 9. Rxe5 c6 10. Re1 Bd6 11. Nc3 Nxc3 12. bxc3 Qh4 13. g3 Qf6 14. d4 Bh3 15. Qh5 Rae8 16. Rxe8 Rxe8 17. Qxh3 Re1+ 18. Bf1 g6 19. Bh6 Re8 20. Re1 Rb8 21. Qd7 {1-0 (21) Dominguez Perez,L (2719)-Kosteniuk,A (2517) Moscow 2009}) 8. a4 {[%emt 0:06:36]} Bg4 {[%emt 0:03:14]} 9. c3 {[%emt 0:00:21]} Na5 $146 {[%emt 0:13:16]} ({Vorgänger:} 9... Bxf3 10. Qxf3 Nb6 11. Bb3 Na5 12. Ba2 Nxa4 13. Qg4 Nb6 14. Qxg7 Kd7 15. Qg4+ {1-0 (26) Atakishiyev,E (1969)-Biyachuev,M (1475) St Petersburg 2017}) 10. Ba2 {[%emt 0:00:48]} c5 {[%emt 0:00:29]} 11. Na3 {[%emt 0:01:53]} Qd7 {[%emt 0:07:54]} 12. h3 {[%emt 0:06:26]} Be6 {[%emt 0:01:51]} 13. d4 {[%emt 0:02:59]} exd4 {[%emt 0:01:32]} 14. cxd4 {[%emt 0:05:23]} Nc7 {[%emt 0:09:30]} 15. Bxe6 {[%emt 0:04:25]} Nxe6 {[%emt 0:00:10]} 16. d5 {[%emt 0:00:49]} Nd4 {[%emt 0:12:44]} 17. Nxd4 {[%emt 0:00:46]} cxd4 {[%emt 0:00:16]} 18. b4 {[%emt 0:00:14]} Qxd5 {[%emt 0:02:05]} 19. bxa5 {[%emt 0:00:19]} Qxa5 {[%emt 0:00:22]} 20. Nc4 $18 {[%emt 0:07:34]} Qb4 {[%emt 0:05:28]} 21. Ba3 {[%emt 0:00:32]} Qxc4 {[%emt 0:00:25]} 22. Rxe7+ {[%emt 0:01:23]} Kd8 {[%emt 0:00:11]} 23. Re4 {[%emt 0:00:39]} Qc3 {[%emt 0:05:01]} 24. Rxd4+ {[%emt 0:01:08]} Ke8 {[%emt 0:00:16]} 25. Rd7 {[%emt 0:02:50]} 1-0

[Event "Faroes Open 2018"]
[Site "Sandavagur"]
[Date "2018.07.08"]
[Round "2"]
[White "Hruby, Milan"]
[Black "Joensen, Hans Petur"]
[Result "1-0"]
[ECO "D15"]
[WhiteElo "2031"]
[BlackElo "1627"]
[Annotator "NA"]
[PlyCount "63"]
[EventDate "2018.07.07"]
[EventType "swiss"]
[EventCountry "FAI"]
[SourceTitle "playchess.com"]
[Source "ChessBase"]
[SourceQuality "1"]
[TimeControl "40/5400+30:900+30"]

1. d4 {[%emt 0:02:24]} d5 {[%emt 0:00:02]} 2. c4 {[%emt 0:00:11]} c6 {[%emt 0:00:27]} 3. Nf3 {[%emt 0:00:07]} Nf6 {[%emt 0:00:30]} 4. Nc3 {[%emt 0:00:06]} Bg4 {[%emt 0:03:52]} 5. cxd5 {[%emt 0:02:52]} Nxd5 {[%emt 0:01:34]} 6. e4 {[%emt 0:00:59]} Nb6 {[%emt 0:04:38]} 7. Be3 {[%emt 0:00:42]} e6 {[%emt 0:00:42]} 8. Qb3 {[%emt 0:04:20]} Bd6 {[%emt 0:03:46]} 9. a4 {[%emt 0:03:57]} a5 {[%emt 0:08:50]} 10. Be2 {[%emt 0:06:08]} O-O {[%emt 0:01:35]} 11. O-O {[%emt 0:02:58]} Qc7 {[%emt 0:04:06]} 12. h3 {[%emt 0:03:48]} Bh5 {[%emt 0:01:05]} 13. Rac1 {[%emt 0:00:38]} N8d7 {[%emt 0:08:52]} 14. Nb5 {[%emt 0:04:53]} Qb8 {[%emt 0:00:17]} 15. Nxd6 {[%emt 0:00:24]} Qxd6 {[%emt 0:00:12]} 16. d5 {[%emt 0:02:29]} cxd5 {[%emt 0:08:33]} 17. e5 {[%emt 0:19:19]} Qb4 {[%emt 0:06:05]} 18. Qxb4 {[%emt 0:00:29]} axb4 {[%emt 0:00:08]} 19. Rc7 {[%emt 0:00:20]} Bxf3 {[%emt 0:11:00]} 20. gxf3 {[%emt 0:00:38]} Rfc8 {[%emt 0:08:09]} 21. Rfc1 {[%emt 0:04:41]} Rxc7 {[%emt 0:10:54]} 22. Rxc7 {[%emt 0:00:21]} Rd8 {[%emt 0:00:28]} 23. Bb5 {[%emt 0:02:11]} Nxa4 {[%emt 0:09:05]} 24. Bxa4 {[%emt 0:17:23]} Nxe5 {[%emt 0:00:22]} 25. f4 {[%emt 0:04:21]} Nd3 {[%emt 0:01:10]} 26. b3 {[%emt 0:03:37]} d4 {[%emt 0:00:50]} 27. Bd2 {[%emt 0:01:32]} f6 {[%emt 0:00:48]} 28. Bb5 {[%emt 0:03:41]} Nb2 {[%emt 0:00:44]} 29. Rc2 {[%emt 0:01:00]} Nd1 {[%emt 0:00:22]} 30. Bxb4 {[%emt 0:00:19]} Nc3 {[%emt 0:01:25]} 31. Bxc3 {[%emt 0:01:34]} Rc8 {[%emt 0:00:13]} 32. Bc4 {[%emt 0:00:27]} 1-0

[Event "Faroes Open 2018"]
[Site "Sandavagur"]
[Date "2018.07.08"]
[Round "2"]
[White "Fruehauf, Norbert"]
[Black "Nielsen, Suni í Horni"]
[Result "1-0"]
[ECO "C64"]
[WhiteElo "1958"]
[BlackElo "1487"]
[Annotator "NA"]
[PlyCount "71"]
[EventDate "2018.07.07"]
[EventType "swiss"]
[EventCountry "FAI"]
[SourceTitle "playchess.com"]
[Source "ChessBase"]
[SourceQuality "1"]
[TimeControl "40/5400+30:900+30"]

1. e4 {[%emt 0:00:00]} e5 {[%emt 0:00:23]} 2. Nf3 {[%emt 0:00:00]} Nc6 {[%emt 0:00:19]} 3. Bb5 {[%emt 0:00:03]} Bc5 {[%emt 0:00:23]} 4. c3 {[%emt 0:00:57]} d6 {[%emt 0:03:21]} 5. h3 {[%emt 0:02:42]} Bd7 {[%emt 0:01:39]} 6. Qe2 {[%emt 0:02:10]} Nf6 {[%emt 0:02:14]} 7. d3 {[%emt 0:01:18]} h6 {[%emt 0:00:56]} 8. Nbd2 {[%emt 0:02:21]} a6 {[%emt 0:04:52]} 9. Ba4 {[%emt 0:00:39]} Qe7 {[%emt 0:01:04]} 10. Nf1 {[%emt 0:02:06]} Nh7 {[%emt 0:20:57]} 11. Ng3 {[%emt 0:05:54]} Rf8 {[%emt 0:05:24]} 12. b4 {[%emt 0:05:53]} Ba7 {[%emt 0:00:08]} 13. Be3 {[%emt 0:02:06]} b5 {[%emt 0:07:32]} 14. Bb3 {[%emt 0:02:28]} Ng5 {[%emt 0:11:32]} 15. Nxg5 {[%emt 0:07:53]} hxg5 {[%emt 0:01:59]} 16. Bd5 {[%emt 0:04:12]} Bxe3 {[%emt 0:03:39]} 17. fxe3 {[%emt 0:00:31]} O-O-O {[%emt 0:02:32]} 18. a4 {[%emt 0:07:03]} Nb8 {[%emt 0:02:54]} 19. axb5 {[%emt 0:03:29]} Bxb5 {[%emt 0:00:10]} 20. O-O {[%emt 0:05:47]} Bd7 {[%emt 0:03:15]} 21. Nf5 {[%emt 0:07:27]} Bxf5 {[%emt 0:06:40]} 22. exf5 {[%emt 0:03:26]} Qf6 {[%emt 0:02:13]} 23. d4 {[%emt 0:04:16]} c6 {[%emt 0:02:08]} 24. Bc4 {[%emt 0:00:44]} Kd7 {[%emt 0:00:29]} 25. Bxa6 {[%emt 0:00:23]} Nxa6 {[%emt 0:00:16]} 26. Rxa6 {[%emt 0:00:17]} Ra8 {[%emt 0:00:10]} 27. Qa2 {[%emt 0:01:11]} Rxa6 {[%emt 0:01:25]} 28. Qxa6 {[%emt 0:00:04]} Rc8 {[%emt 0:00:13]} 29. g4 {[%emt 0:05:18]} exd4 {[%emt 0:01:09]} 30. cxd4 {[%emt 0:00:03]} Qe7 {[%emt 0:00:13]} 31. Kf2 {[%emt 0:01:16]} Qe4 {[%emt 0:03:01]} 32. Rc1 {[%emt 0:00:12]} Rc7 {[%emt 0:02:00]} 33. b5 {[%emt 0:02:56]} c5 {[%emt 0:03:15]} 34. dxc5 {[%emt 0:00:31]} Qb4 {[%emt 0:03:01]} 35. Qxd6+ {[%emt 0:02:05]} Ke8 {[%emt 0:01:04]} 36. Rd1 {[%emt 0:00:50]} 1-0

[Event "Faroes Open 2018"]
[Site "Sandavagur"]
[Date "2018.07.08"]
[Round "2"]
[White "Haubro, Siv"]
[Black "Petersen, Elias"]
[Result "1-0"]
[ECO "C50"]
[WhiteElo "1780"]
[BlackElo "1035"]
[Annotator "NA"]
[PlyCount "41"]
[EventDate "2018.07.07"]
[EventType "swiss"]
[EventCountry "FAI"]
[SourceTitle "playchess.com"]
[Source "ChessBase"]
[SourceQuality "1"]
[TimeControl "40/5400+30:900+30"]

1. e4 {[%emt 0:01:36]} e5 {[%emt 0:00:00]} 2. Nf3 {[%emt 0:00:06]} Nc6 {[%emt 0:00:00]} 3. Bc4 {[%emt 0:00:21]} Bc5 {[%emt 0:00:18]} 4. O-O {[%emt 0:00:33]} h6 {[%emt 0:01:03]} 5. c3 {[%emt 0:01:11]} d6 {[%emt 0:01:24]} 6. d4 {[%emt 0:01:33]} Bb6 {[%emt 0:00:31]} 7. h3 {[%emt 0:08:52]} Nf6 {[%emt 0:02:28]} 8. d5 {[%emt 0:05:59]} Ne7 {[%emt 0:02:08]} 9. Bd3 {[%emt 0:01:32]} c6 {[%emt 0:01:52]} 10. c4 {[%emt 0:00:26]} O-O {[%emt 0:02:28]} 11. Nc3 {[%emt 0:03:16]} Nh7 {[%emt 0:06:19]} 12. Qc2 {[%emt 0:01:55]} Bd4 {[%emt 0:08:49]} 13. Nxd4 {[%emt 0:01:18]} exd4 {[%emt 0:00:19]} 14. Ne2 {[%emt 0:00:48]} c5 {[%emt 0:03:48]} 15. e5 {[%emt 0:02:49]} g6 {[%emt 0:03:03]} 16. Bxh6 {[%emt 0:01:33]} Re8 {[%emt 0:00:35]} 17. e6 {[%emt 0:06:18]} f5 {[%emt 0:03:42]} 18. g4 {[%emt 0:09:56]} Nf6 {[%emt 0:01:42]} 19. gxf5 {[%emt 0:01:20]} Kh7 {[%emt 0:00:29]} 20. Bg5 {[%emt 0:00:56]} Nh5 {[%emt 0:01:03]} 21. f6 1-0

[Event "Faroes Open 2018"]
[Site "Sandavagur"]
[Date "2018.07.08"]
[Round "2"]
[White "Djurhuus, Arant"]
[Black "Kristiansen, Jens"]
[Result "0-1"]
[ECO "A45"]
[WhiteElo "1703"]
[BlackElo "2380"]
[Annotator "NA"]
[PlyCount "242"]
[EventDate "2018.07.07"]
[EventType "swiss"]
[EventCountry "FAI"]
[SourceTitle "playchess.com"]
[Source "ChessBase"]
[SourceQuality "1"]
[TimeControl "40/5400+30:900+30"]

1. d4 {[%emt 0:00:52]} Nf6 {[%emt 0:00:00]} 2. Bf4 {[%emt 0:00:17]} c5 {[%emt 0:02:30]} 3. d5 {[%emt 0:00:43]} d6 {[%emt 0:00:43]} 4. Nc3 {[%emt 0:00:22]} g6 {[%emt 0:00:13]} 5. e4 {[%emt 0:00:44]} Bg7 {[%emt 0:00:10]} 6. Qd2 {[%emt 0:01:01]} Qb6 {[%emt 0:07:45]} 7. a4 {[%emt 0:03:47]} O-O {[%emt 0:03:09]} 8. Bd3 {[%emt 0:16:57]} e6 {[%emt 0:16:43]} 9. a5 {[%emt 0:03:47]} Qd8 {[%emt 0:00:38]} 10. Bh6 {[%emt 0:10:38]} exd5 {[%emt 0:01:34]} 11. Bxg7 {[%emt 0:03:51]} Kxg7 {[%emt 0:00:19]} 12. exd5 {[%emt 0:01:14]} Nbd7 {[%emt 0:01:01]} 13. Nge2 {[%emt 0:11:11]} Ne5 {[%emt 0:04:05]} 14. O-O {[%emt 0:15:44]} a6 {[%emt 0:02:02]} 15. Ng3 {[%emt 0:06:31]} Re8 {[%emt 0:08:15]} 16. f4 {[%emt 0:07:45]} Neg4 {[%emt 0:03:37]} 17. h3 {[%emt 0:00:55]} Ne3 {[%emt 0:04:44]} 18. Rf3 {[%emt 0:01:14]} Nexd5 {[%emt 0:05:21]} 19. Nxd5 {[%emt 0:00:46]} Nxd5 {[%emt 0:01:58]} 20. Bxg6 {[%emt 0:03:14]} hxg6 {[%emt 0:00:27]} 21. Qxd5 {[%emt 0:00:34]} Qf6 {[%emt 0:07:11]} 22. f5 {[%emt 0:03:06]} Re5 {[%emt 0:01:17]} 23. Qd3 {[%emt 0:00:55]} Bxf5 {[%emt 0:01:02]} 24. Nxf5+ {[%emt 0:02:17]} Rxf5 {[%emt 0:00:08]} 25. Raf1 {[%emt 0:00:52]} Rxf3 {[%emt 0:00:27]} 26. Rxf3 {[%emt 0:00:17]} Qe5 {[%emt 0:03:34]} 27. Qb3 {[%emt 0:00:44]} Qe7 {[%emt 0:04:11]} 28. Qc3+ {[%emt 0:00:20]} Kg8 {[%emt 0:00:46]} 29. Re3 {[%emt 0:01:14]} Qg5 {[%emt 0:01:41]} 30. Qb3 {[%emt 0:00:45]} d5 {[%emt 0:02:40]} 31. Rf3 {[%emt 0:00:21]} Rb8 {[%emt 0:07:13]} 32. c3 {[%emt 0:01:20]} Qe5 {[%emt 0:02:39]} 33. Qb6 {[%emt 0:01:08]} d4 {[%emt 0:01:24]} 34. cxd4 {[%emt 0:00:11]} Qxd4+ {[%emt 0:00:23]} 35. Kh2 {[%emt 0:00:33]} Qe5+ {[%emt 0:01:51]} 36. Kg1 {[%emt 0:00:27]} Qd4+ {[%emt 0:01:29]} 37. Kh2 {[%emt 0:00:08]} Rd8 {[%emt 0:00:31]} 38. Rf1 {[%emt 0:01:37]} Rd7 {[%emt 0:01:23]} 39. Qb3 {[%emt 0:00:30]} c4 {[%emt 0:01:35]} 40. Qb4 {[%emt 0:00:34]} Qe5+ {[%emt 0:02:28]} 41. Kh1 {[%emt 0:02:22]} Qe2 {[%emt 0:04:51]} 42. Re1 Rd1 {[%emt 0:00:30]} 43. Rxd1 Qxd1+ {[%emt 0:00:30]} 44. Kh2 Qd5 {[%emt 0:00:30]} 45. Qb6 Kf8 {[%emt 0:00:30]} 46. Qc7 Ke8 {[%emt 0:00:30]} 47. Kh1 Qe4 {[%emt 0:00:30]} 48. Kh2 Qd5 {[%emt 0:00:30]} 49. Kh1 Qb5 {[%emt 0:00:30]} 50. Qc8+ Ke7 {[%emt 0:00:30]} 51. Qc7+ Ke6 {[%emt 0:00:30]} 52. Qc8+ Kf6 {[%emt 0:00:30]} 53. Qd8+ Kf5 {[%emt 0:00:30]} 54. Qc8+ Ke4 {[%emt 0:00:30]} 55. Qg4+ Kd3 {[%emt 0:00:30]} 56. Qf3+ Kc2 {[%emt 0:00:30]} 57. Qc3+ Kb1 {[%emt 0:00:30]} 58. Kh2 Qxb2 {[%emt 0:00:30]} 59. Qxc4 Qe5+ {[%emt 0:00:30]} 60. Kh1 Qe1+ {[%emt 0:00:30]} 61. Kh2 Qxa5 {[%emt 0:00:30]} 62. Qxf7 Qe5+ {[%emt 0:00:30]} 63. Kh1 Qe4 {[%emt 0:00:30]} 64. Qb3+ Kc1 {[%emt 0:00:30]} 65. Qa3+ Kd1 {[%emt 0:00:30]} 66. Qa1+ Kd2 {[%emt 0:00:30]} 67. Qb2+ Ke1 {[%emt 0:00:30]} 68. Qc1+ Ke2 {[%emt 0:00:30]} 69. Qb2+ Kd3 {[%emt 0:00:30]} 70. Qb3+ Kd4 {[%emt 0:00:30]} 71. Qb6+ Ke5 {[%emt 0:00:30]} 72. Qc5+ Ke6 {[%emt 0:00:30]} 73. Qc8+ Kf7 {[%emt 0:00:30]} 74. Qd7+ Qe7 {[%emt 0:00:30]} 75. Qd5+ Kg7 {[%emt 0:00:30]} 76. Qd4+ Kh7 {[%emt 0:00:30]} 77. Qb6 Qe1+ {[%emt 0:00:30]} 78. Kh2 Qe5+ {[%emt 0:00:30]} 79. Kh1 Qd5 {[%emt 0:00:30]} 80. Qc7+ Kh6 {[%emt 0:00:30]} 81. Qf4+ Kg7 {[%emt 0:00:30]} 82. Qc7+ Kf6 {[%emt 0:00:30]} 83. Qf4+ Kg7 {[%emt 0:00:30]} 84. Qc7+ Qf7 {[%emt 0:00:30]} 85. Qb6 Qf1+ {[%emt 0:00:30]} 86. Kh2 Qb5 {[%emt 0:00:30]} 87. Qc7+ Kf6 {[%emt 0:00:30]} 88. Qd6+ Kf7 {[%emt 0:00:30]} 89. Qc7+ Ke6 {[%emt 0:00:30]} 90. Qc8+ Kd6 {[%emt 0:00:30]} 91. Qd8+ Qd7 {[%emt 0:00:30]} 92. Qf6+ Qe6 {[%emt 0:00:30]} 93. Qd4+ Kc6 {[%emt 0:00:30]} 94. Qa4+ Kc7 {[%emt 0:00:30]} 95. Qa5+ Kb8 {[%emt 0:00:30]} 96. Qd8+ Ka7 {[%emt 0:00:30]} 97. Qg5 Qd6+ {[%emt 0:00:30]} 98. Kh1 Qb6 {[%emt 0:00:30]} 99. Qf4 a5 {[%emt 0:00:30]} 100. Qe4 Qc6 {[%emt 0:00:30]} 101. Qd4+ Ka6 {[%emt 0:00:30]} 102. Qd3+ b5 {[%emt 0:00:30]} 103. Kh2 a4 {[%emt 0:00:30]} 104. Qd2 Qc7+ {[%emt 0:00:30]} 105. Kh1 Qc5 {[%emt 0:00:30]} 106. Qd8 a3 {[%emt 0:00:30]} 107. Qa8+ Kb6 {[%emt 0:00:30]} 108. Qb8+ Kc6 {[%emt 0:00:30]} 109. Qe8+ Kd5 {[%emt 0:00:30]} 110. Qxg6 Qc1+ {[%emt 0:00:30]} 111. Kh2 Qf4+ {[%emt 0:00:30]} 112. Kh1 b4 {[%emt 0:00:30]} 113. Qd3+ Kc5 {[%emt 0:00:30]} 114. Qc2+ Qc4 {[%emt 0:00:30]} 115. Qf5+ Kb6 {[%emt 0:00:30]} 116. Qf6+ Kb5 {[%emt 0:00:30]} 117. Qf5+ Ka4 {[%emt 0:00:30]} 118. Qd7+ Kb3 {[%emt 0:00:30]} 119. Qd1+ Kb2 {[%emt 0:00:30]} 120. Qd2+ Kb1 {[%emt 0:00:30]} 121. Kh2 Qc2 {[%emt 0:00:30]} 0-1

[Event "Faroes Open 2018"]
[Site "Sandavagur"]
[Date "2018.07.08"]
[Round "2"]
[White "Gregersen, Einar"]
[Black "Nielsen, Høgni Egilstoft"]
[Result "0-1"]
[ECO "C93"]
[WhiteElo "1665"]
[BlackElo "2397"]
[Annotator "NA"]
[PlyCount "116"]
[EventDate "2018.07.07"]
[EventType "swiss"]
[EventCountry "FAI"]
[SourceTitle "playchess.com"]
[Source "ChessBase"]
[SourceQuality "1"]
[TimeControl "40/5400+30:900+30"]

1. e4 {[%emt 0:00:00]} e5 {[%emt 0:00:31]} 2. Nf3 {[%emt 0:00:00]} Nc6 {[%emt 0:00:13]} 3. Bb5 {[%emt 0:00:00]} a6 {[%emt 0:00:19]} 4. Ba4 {[%emt 0:00:03]} Nf6 {[%emt 0:00:30]} 5. O-O {[%emt 0:00:32]} Be7 {[%emt 0:00:28]} 6. Re1 {[%emt 0:00:21]} b5 {[%emt 0:00:34]} 7. Bb3 {[%emt 0:00:06]} O-O {[%emt 0:00:22]} 8. c3 {[%emt 0:00:39]} d6 {[%emt 0:01:00]} 9. h3 {[%emt 0:00:51]} h6 {[%emt 0:11:00]} 10. d4 {[%emt 0:07:57]} Re8 {[%emt 0:03:14]} 11. Nbd2 {[%emt 0:03:46]} Bf8 {[%emt 0:01:06]} 12. Nf1 {[%emt 0:02:48]} Bb7 {[%emt 0:02:30]} 13. Ng3 {[%emt 0:02:44]} Na5 {[%emt 0:03:36]} 14. Bc2 {[%emt 0:00:18]} g6 {[%emt 0:00:25]} 15. b3 {[%emt 0:10:15]} Bg7 {[%emt 0:04:14]} 16. Bb2 {[%emt 0:05:08]} Qe7 {[%emt 0:06:09]} 17. Qd2 Nc6 18. d5 {[%emt 0:15:21]} Nb8 {[%emt 0:10:42]} 19. c4 {[%emt 0:03:56]} bxc4 {[%emt 0:03:41]} 20. bxc4 {[%emt 0:00:47]} Nbd7 {[%emt 0:00:21]} 21. Ba4 {[%emt 0:03:27]} Rf8 {[%emt 0:04:32]} 22. Ba3 {[%emt 0:04:07]} Nb6 {[%emt 0:02:31]} 23. Bb3 {[%emt 0:13:02]} Nfd7 {[%emt 0:05:20]} 24. Rab1 {[%emt 0:03:03]} a5 {[%emt 0:01:08]} 25. Rec1 {[%emt 0:04:13]} Ba6 {[%emt 0:04:22]} 26. Qxa5 {[%emt 0:02:56]} Bxc4 {[%emt 0:03:01]} 27. Qb4 {[%emt 0:00:31]} Bd3 {[%emt 0:01:52]} 28. Rb2 {[%emt 0:00:55]} Rfb8 {[%emt 0:04:19]} 29. Qd2 {[%emt 0:04:21]} Rxa3 {[%emt 0:05:47]} 30. Qxd3 {[%emt 0:00:15]} Na4 {[%emt 0:05:34]} 31. Rbb1 {[%emt 0:01:13]} Nac5 {[%emt 0:00:36]} 32. Qc4 {[%emt 0:02:15]} Nb6 {[%emt 0:02:11]} 33. Qb4 {[%emt 0:02:47]} Rba8 {[%emt 0:01:59]} 34. Rc2 {[%emt 0:02:07]} R3a7 {[%emt 0:04:34]} 35. Nd2 {[%emt 0:03:21]} Rb7 {[%emt 0:02:05]} 36. Qc3 {[%emt 0:00:13]} h5 {[%emt 0:00:06]} 37. Nc4 {[%emt 0:00:59]} h4 {[%emt 0:03:54]} 38. Nf1 {[%emt 0:02:33]} Nxe4 {[%emt 0:00:46]} 39. Qe1 {[%emt 0:00:18]} Nc5 {[%emt 0:01:07]} 40. Na5 {[%emt 0:00:28]} Rbb8 {[%emt 0:02:44]} 41. Nc6 {[%emt 0:15:29]} Qf6 {[%emt 0:15:33]} 42. Nxb8 {[%emt 0:00:28]} Rxb8 {[%emt 0:00:05]} 43. Nd2 {[%emt 0:01:08]} Qf4 {[%emt 0:00:45]} 44. Qe3 {[%emt 0:00:00]} Qxe3 45. fxe3 {[%emt 0:00:00]} Bh6 46. Kf2 {[%emt 0:00:00]} Kf8 47. Bc4 {[%emt 0:00:00]} Ra8 48. Nb3 {[%emt 0:00:00]} Nxc4 49. Rxc4 {[%emt 0:00:00]} Rxa2+ 50. Kf1 {[%emt 0:00:00]} Bxe3 51. Nxc5 {[%emt 0:00:00]} Bxc5 52. Rxh4 {[%emt 0:00:00]} Rf2+ 53. Ke1 {[%emt 0:00:00]} Rxg2 54. Rb8+ {[%emt 0:00:00]} Ke7 55. Rb7 {[%emt 0:00:00]} Bb6 56. Rb4 {[%emt 0:00:00]} Kf6 57. Rb8 {[%emt 0:00:00]} Rh2 58. Rh8 {[%emt 0:00:00]} Ba5 0-1